[Event "23rd ETCC Women 2021"]
[Site "Catez"]
[Date "2021.11.21"]
[Round "9.12"]
[White "Mihok-Juhasz, Barbara"]
[Black "Zhukova, Natalia"]
[Result "0-1"]
[ECO "C09"]
[WhiteElo "2258"]
[BlackElo "2331"]
[Annotator "NA"]
[PlyCount "146"]
[EventDate "2021.11.08"]
[EventType "team-tourn"]
[EventCountry "SLO"]
[SourceTitle "playchess.com"]
[Source "ChessBase"]
[SourceQuality "1"]
[WhiteTeam "Hungary"]
[BlackTeam "Ukraine"]
[WhiteTeamCountry "HUN"]
[BlackTeamCountry "UKR"]
[TimeControl "40/5400+30:1800+30"]

1. e4 {[%emt 0:00:03]} e6 {[%emt 0:00:13]} 2. d4 {[%emt 0:00:04]} d5 {[%emt 0:
00:07]} 3. Nd2 {[%emt 0:00:06]} c5 {[%emt 0:00:54]} 4. Ngf3 {[%emt 0:00:07]}
Nc6 {[%emt 0:01:56]} 5. exd5 {[%emt 0:00:11]} exd5 {[%emt 0:00:12]} 6. Bb5 {
[%emt 0:00:09]} Qe7+ {[%emt 0:00:27]} 7. Be2 {[%emt 0:00:04]} Qc7 {[%emt 0:00:
19]} 8. O-O {[%emt 0:00:30]} Nf6 {[%emt 0:00:14]} 9. Re1 {[%emt 0:03:24]} Be6 {
[%emt 0:00:16]} 10. Bd3 {[%emt 0:02:24]} O-O-O {[%emt 0:11:21]} 11. c3 {
[%emt 0:03:08]} Bg4 {[%emt 0:09:05]} 12. h3 {[%emt 0:07:20]} Bh5 {[%emt 0:01:
06]} 13. dxc5 {[%emt 0:09:00]} Bxc5 {[%emt 0:00:23]} 14. Nb3 {[%emt 0:00:15]}
Bb6 {[%emt 0:04:56]} 15. Be3 {[%emt 0:08:48]} Bxe3 {[%emt 0:13:34]} 16. Rxe3 {
[%emt 0:00:34]} Ne5 {[%emt 0:15:28]} 17. Rxe5 {[%emt 0:18:17]} Bxf3 {[%emt 0:
00:25]} 18. Bf5+ {[%emt 0:00:04]} Kb8 {[%emt 0:00:35]} 19. Qd4 {[%emt 0:00:04]}
Be4 {[%emt 0:00:24]} 20. Re1 {[%emt 0:14:39]} g6 {[%emt 0:13:33]} 21. Bxe4 {
[%emt 0:09:47]} dxe4 {[%emt 0:00:10]} 22. Qc5 {[%emt 0:00:03]} Qxc5 {[%emt 0:
03:31]} 23. Nxc5 {[%emt 0:05:54]} Rhe8 {[%emt 0:00:25]} 24. Rxe8 {[%emt 0:00:
43]} Rxe8 {[%emt 0:00:06]} 25. Rd1 {[%emt 0:01:43]} Kc7 {[%emt 0:03:36]} 26.
Kf1 {[%emt 0:00:15]} Re5 {[%emt 0:02:55]} 27. Nb3 {[%emt 0:02:34]} h5 {[%emt 0:
03:19]} 28. h4 {[%emt 0:02:00]} Ng4 {[%emt 0:05:02]} 29. Ke2 {[%emt 0:00:45]}
Rb5 {[%emt 0:07:21]} 30. Rd2 {[%emt 0:07:09]} Rf5 {[%emt 0:00:21]} 31. Ke1 {
[%emt 0:00:03]} Ne5 {[%emt 0:02:57]} 32. Nd4 {[%emt 0:01:20]} Rf4 {[%emt 0:00:
27]} 33. g3 {[%emt 0:00:54]} Rf6 {[%emt 0:00:26]} 34. Re2 {[%emt 0:00:41]} Ng4
{[%emt 0:00:48]} 35. Rxe4 {[%emt 0:01:09]} Nxf2 {[%emt 0:00:08]} 36. Re7+ {
[%emt 0:00:46]} Kb6 {[%emt 0:00:17]} 37. b3 {[%emt 0:02:22]} a5 {[%emt 0:01:03]
} 38. Re3 {[%emt 0:01:11]} Nh1 {[%emt 0:00:24]} 39. Ne2 {[%emt 0:00:26]} Rf5 {
[%emt 0:00:22]} 40. a4 {[%emt 0:00:44]} Ka6 {[%emt 0:00:43]} 41. Nd4 {[%emt 0:
13:14]} Rf6 {[%emt 0:03:08]} 42. b4 {[%emt 0:03:28]} axb4 {[%emt 0:02:32]} 43.
cxb4 {[%emt 0:00:06]} b6 {[%emt 0:22:44]} 44. Kd2 {[%emt 0:09:36]} Kb7 {
[%emt 0:00:33]} 45. Re7+ {[%emt 0:00:07]} Kc8 {[%emt 0:00:47]} 46. Ne2 {
[%emt 0:01:21]} Kd8 {[%emt 0:00:56]} 47. Rb7 {[%emt 0:00:33]} Kc8 {[%emt 0:00:
11]} 48. Re7 {[%emt 0:00:20]} Kd8 {[%emt 0:00:04]} 49. Ra7 {[%emt 0:00:58]} Rf3
{[%emt 0:03:15]} 50. Nd4 {[%emt 0:01:03]} Rxg3 {[%emt 0:00:16]} 51. Rxf7 {
[%emt 0:00:25]} Rg4 {[%emt 0:00:19]} 52. Kc3 {[%emt 0:00:16]} Ng3 {[%emt 0:00:
09]} 53. Nc6+ {[%emt 0:02:27]} Kc8 {[%emt 0:00:21]} 54. Rg7 {[%emt 0:00:54]}
Nf5 {[%emt 0:00:28]} 55. Ne7+ {[%emt 0:00:38]} Nxe7 {[%emt 0:00:05]} 56. Rxe7 {
[%emt 0:00:02]} Rxh4 {[%emt 0:00:13]} 57. Re6 {[%emt 0:00:04]} Rg4 {[%emt 0:00:
55]} 58. Rxb6 {[%emt 0:00:19]} h4 {[%emt 0:00:11]} 59. Rf6 {[%emt 0:00:48]} h3
{[%emt 0:00:13]} 60. Rf8+ {[%emt 0:00:02]} Kc7 {[%emt 0:00:42]} 61. Rh8 {
[%emt 0:00:05]} Rg3+ {[%emt 0:00:27]} 62. Kc4 {[%emt 0:00:26]} g5 {[%emt 0:00:
42]} 63. Kc5 {[%emt 0:01:50]} g4 {[%emt 0:00:57]} 64. b5 {[%emt 0:00:38]} Rc3+
{[%emt 0:00:34]} 65. Kb4 {[%emt 0:01:55]} Rc1 {[%emt 0:00:06]} 66. a5 {[%emt 0:
00:54]} g3 {[%emt 0:00:50]} 67. b6+ {[%emt 0:01:15]} Kd6 {[%emt 0:00:37]} 68.
a6 {[%emt 0:00:31]} g2 {[%emt 0:00:48]} 69. Rg8 {[%emt 0:00:30]} Rb1+ {[%emt 0:
00:29]} 70. Ka5 {[%emt 0:00:20]} h2 {[%emt 0:00:28]} 71. Rg6+ {[%emt 0:00:43]}
Ke7 {[%emt 0:00:18]} 72. a7 {[%emt 0:00:31]} Ra1+ {[%emt 0:00:06]} 73. Kb5 {
[%emt 0:00:05]} g1=Q {[%emt 0:00:10]} 0-1

[Event "23rd ETCC Women 2021"]
[Site "Catez"]
[Date "2021.11.21"]
[Round "9.13"]
[White "Mammadzada, Gunay"]
[Black "Peng, Zhaoqin"]
[Result "1-0"]
[ECO "B15"]
[WhiteElo "2459"]
[BlackElo "2351"]
[Annotator "ChessBase"]
[PlyCount "105"]
[EventDate "2021.11.08"]
[EventType "team-tourn"]
[EventCountry "SLO"]
[SourceTitle "playchess.com"]
[Source "ChessBase"]
[SourceQuality "1"]
[WhiteTeam "Azerbaijan"]
[BlackTeam "Netherlands"]
[WhiteTeamCountry "AZE"]
[BlackTeamCountry "NED"]
[TimeControl "40/5400+30:1800+30"]

1. e4 {[%emt 0:00:07]} c6 {[%emt 0:00:06]} 2. d4 {[%emt 0:00:09]} d5 {[%emt 0:
00:03]} 3. Nc3 {[%emt 0:00:07]} dxe4 {[%emt 0:00:10]} 4. Nxe4 {[%emt 0:00:05]}
Nf6 {[%emt 0:00:12]} 5. Nxf6+ {[%emt 0:00:05]} exf6 {[%emt 0:00:05]} 6. c3 {
[%emt 0:00:03]} Bd6 {[%emt 0:00:17]} 7. Bd3 {[%emt 0:00:15]} O-O {[%emt 0:00:
16]} 8. Qc2 {[%emt 0:00:19]} Re8+ {[%emt 0:00:13]} 9. Ne2 {[%emt 0:00:06]} h5 {
[%emt 0:00:08]} 10. Be3 {[%emt 0:01:44]} Nd7 {[%emt 0:00:15]} 11. O-O-O {
[%emt 0:00:37]} Nf8 {[%emt 0:00:23]} 12. Kb1 {[%emt 0:01:18]} Be6 {[%emt 0:00:
38]} 13. c4 {[%emt 0:00:26]} Rc8 {[%emt 0:00:25]} 14. a3 {[%emt 0:00:15]} b5 {
[%emt 0:08:40]} 15. c5 {[%emt 0:03:39]} Bb8 {[%emt 0:05:00]} 16. Nc3 {[%emt 0:
10:47]} Qa5 {[%emt 0:12:05]} 17. Bd2 {[%emt 0:13:31]} Qd8 {[%emt 0:01:18]} 18.
Bc1 {[%emt 0:20:11]} Qe7 {[%emt 0:35:57]} 19. Rhe1 {[%emt 0:06:59]} a5 {
[%emt 0:03:02]} 20. d5 {[%emt 0:12:47]} cxd5 {[%emt 0:00:10]} 21. Bxb5 {
[%emt 0:00:12]} Red8 {[%emt 0:00:23]} 22. Nxd5 {[%emt 0:02:04]} Rxd5 {[%emt 0:
07:34]} 23. Rxd5 {[%emt 0:00:05]} Be5 {[%emt 0:00:09]} 24. Red1 {[%emt 0:02:43]
} Bxd5 25. Rxd5 {[%emt 0:00:01]} Ne6 {[%emt 0:14:45]} 26. c6 {[%emt 0:02:23]}
Nd4 {[%emt 0:04:06]} 27. Qc4 {[%emt 0:08:26]} Nxb5 {[%emt 0:01:09]} 28. Rxb5 {
[%emt 0:00:43]} g5 {[%emt 0:05:05]} 29. Rxa5 {[%emt 0:09:05]} Bxh2 {[%emt 0:01:
00]} 30. g3 {[%emt 0:00:49]} Qe6 {[%emt 0:00:41]} 31. Qxe6 {[%emt 0:01:02]}
fxe6 {[%emt 0:00:02]} 32. Bxg5 {[%emt 0:01:52]} fxg5 33. Rxg5+ {[%emt 0:00:02]}
Kf7 {[%emt 0:01:17]} 34. Rxh5 {[%emt 0:00:04]} Bg1 {[%emt 0:01:09]} 35. Rh1 {
[%emt 0:00:01]} Bxf2 {[%emt 0:00:07]} 36. Rf1 {[%emt 0:00:02]} Rxc6 {[%emt 0:
00:09]} 37. Rxf2+ {[%emt 0:00:03]} Kg6 {[%emt 0:00:59]} 38. Ka2 {[%emt 0:05:15]
} e5 {[%emt 0:00:07]} 39. a4 {[%emt 0:00:03]} e4 {[%emt 0:00:22]} 40. Ka3 {
[%emt 0:01:09]} e3 {[%emt 0:00:23]} 41. Re2 {[%emt 0:30:05]} Re6 {[%emt 0:30:
06]} 42. b4 {[%emt 0:00:00]} Kf5 {[%emt 0:00:00]} 43. b5 {[%emt 0:00:00]} Ke4 {
[%emt 0:00:00]} 44. a5 {[%emt 0:00:00]} Kd3 {[%emt 0:00:00]} 45. Re1 {[%emt 0:
00:00]} Kd2 {[%emt 0:00:00]} 46. Rh1 {[%emt 0:00:00]} e2 {[%emt 0:00:00]} 47.
b6 {[%emt 0:00:00]} e1=Q {[%emt 0:00:00]} 48. Rxe1 {[%emt 0:00:00]} Rxe1 {
[%emt 0:00:00]} 49. Kb4 {[%emt 0:00:00]} Kd3 {[%emt 0:00:00]} 50. Kb5 {[%emt 0:
00:00]} Kd4 {[%emt 0:02:06]} 51. b7 {[%emt 0:00:00]} Kd5 {[%emt 0:02:04]} 52.
Kb6 {[%emt 0:00:00]} Rb1+ {[%emt 0:02:30]} 53. Ka7 {[%emt 0:00:00]} 1-0

[Event "23rd ETCC Women 2021"]
[Site "Catez"]
[Date "2021.11.21"]
[Round "9.14"]
[White "Roebers, Eline"]
[Black "Mammadova, Gulnar"]
[Result "1-0"]
[ECO "C16"]
[WhiteElo "2304"]
[BlackElo "2395"]
[Annotator "NA"]
[PlyCount "119"]
[EventDate "2021.11.08"]
[EventType "team-tourn"]
[EventCountry "SLO"]
[SourceTitle "playchess.com"]
[Source "ChessBase"]
[SourceQuality "1"]
[WhiteTeam "Netherlands"]
[BlackTeam "Azerbaijan"]
[WhiteTeamCountry "NED"]
[BlackTeamCountry "AZE"]
[TimeControl "40/5400+30:1800+30"]

1. e4 {[%emt 0:00:03]} e6 {[%emt 0:00:07]} 2. d4 {[%emt 0:00:19]} d5 {[%emt 0:
00:08]} 3. Nc3 {[%emt 0:00:21]} Bb4 {[%emt 0:00:15]} 4. e5 {[%emt 0:00:56]} b6
{[%emt 0:00:18]} 5. h4 {[%emt 0:00:26]} h6 {[%emt 0:02:48]} 6. h5 {[%emt 0:00:
29]} Ba6 {[%emt 0:01:44]} 7. Bxa6 {[%emt 0:09:48]} Nxa6 {[%emt 0:01:59]} 8. Qd3
{[%emt 0:00:03]} Qc8 {[%emt 0:01:15]} 9. a3 {[%emt 0:08:53]} Bf8 {[%emt 0:02:
37]} 10. Nce2 {[%emt 0:00:53]} Ne7 {[%emt 0:02:47]} 11. c3 {[%emt 0:06:22]} c5
{[%emt 0:04:20]} 12. b4 {[%emt 0:04:06]} Nb8 {[%emt 0:07:08]} 13. Rh4 {[%emt 0:
04:37]} Nd7 {[%emt 0:05:54]} 14. Qf3 {[%emt 0:05:24]} Qc6 {[%emt 0:12:40]} 15.
Rf4 {[%emt 0:08:55]} f6 {[%emt 0:03:18]} 16. exf6 {[%emt 0:00:30]} gxf6 {
[%emt 0:00:04]} 17. Rxf6 {[%emt 0:01:27]} Nxf6 {[%emt 0:01:20]} 18. Qxf6 {
[%emt 0:00:05]} Rh7 {[%emt 0:04:36]} 19. Nf3 {[%emt 0:00:47]} Bg7 {[%emt 0:02:
56]} 20. Qf4 {[%emt 0:00:38]} Kd7 {[%emt 0:11:09]} 21. a4 {[%emt 0:06:31]} cxb4
{[%emt 0:01:58]} 22. cxb4 {[%emt 0:01:13]} Qd6 {[%emt 0:02:33]} 23. Qxd6+ {
[%emt 0:10:28]} Kxd6 {[%emt 0:00:05]} 24. Bf4+ {[%emt 0:04:02]} Kd7 {[%emt 0:
00:15]} 25. Kd2 {[%emt 0:02:44]} Nc6 {[%emt 0:04:11]} 26. Rb1 {[%emt 0:01:05]}
Rhh8 {[%emt 0:01:27]} 27. Kd3 {[%emt 0:01:39]} Rac8 {[%emt 0:03:32]} 28. b5 {
[%emt 0:11:58]} Na5 {[%emt 0:02:09]} 29. Be5 {[%emt 0:03:08]} Rhg8 {[%emt 0:00:
24]} 30. Nf4 {[%emt 0:01:43]} Nc4 {[%emt 0:02:14]} 31. Ng6 {[%emt 0:00:49]} Bf8
{[%emt 0:05:32]} 32. g4 {[%emt 0:02:39]} Ba3 {[%emt 0:04:10]} 33. Bf4 {[%emt 0:
01:38]} Nb2+ {[%emt 0:02:35]} 34. Kd2 {[%emt 0:00:19]} Bb4+ {[%emt 0:02:45]}
35. Ke2 {[%emt 0:00:18]} Rc2+ {[%emt 0:00:05]} 36. Kf1 {[%emt 0:00:06]} Ke8 {
[%emt 0:04:22]} 37. Bxh6 {[%emt 0:00:28]} Ba5 {[%emt 0:01:19]} 38. Bf4 {
[%emt 0:00:41]} Nd3 {[%emt 0:00:39]} 39. Be3 {[%emt 0:00:17]} Kf7 {[%emt 0:00:
32]} 40. Rd1 {[%emt 0:02:12]} Nb2 {[%emt 0:00:18]} 41. Nfe5+ {[%emt 0:31:20]}
Kg7 {[%emt 0:30:46]} 42. Rc1 {[%emt 0:00:00]} Rxc1+ {[%emt 0:00:00]} 43. Bxc1 {
[%emt 0:00:00]} Nc4 {[%emt 0:00:00]} 44. Nxc4 {[%emt 0:00:00]} dxc4 {[%emt 0:
00:00]} 45. g5 {[%emt 0:00:00]} Bc3 {[%emt 0:00:00]} 46. Ne7 {[%emt 0:00:00]}
Rh8 {[%emt 0:00:00]} 47. h6+ {[%emt 0:00:00]} Kf7 {[%emt 0:00:00]} 48. Nc6 {
[%emt 0:00:00]} Kg6 {[%emt 0:00:00]} 49. Ke2 {[%emt 0:00:00]} Re8 {[%emt 0:00:
00]} 50. Be3 {[%emt 0:00:00]} Kf5 {[%emt 0:00:00]} 51. Ne5 {[%emt 0:00:00]} Bb4
{[%emt 0:00:00]} 52. g6 {[%emt 0:04:17]} Bd6 {[%emt 0:00:00]} 53. Nf7 {[%emt 0:
00:43]} Bc7 {[%emt 0:00:00]} 54. g7 {[%emt 0:00:54]} Kg6 {[%emt 0:00:00]} 55.
Ng5 {[%emt 0:00:27]} e5 {[%emt 0:00:00]} 56. d5 {[%emt 0:00:28]} Bd6 {[%emt 0:
00:00]} 57. Ne4 {[%emt 0:00:21]} Bb4 {[%emt 0:00:00]} 58. d6 {[%emt 0:00:10]}
c3 {[%emt 0:00:18]} 59. Kd3 {[%emt 0:00:11]} Rd8 {[%emt 0:01:00]} 60. Bg5 {
[%emt 0:00:39]} 1-0

[Event "23rd ETCC Women 2021"]
[Site "Catez"]
[Date "2021.11.21"]
[Round "9.15"]
[White "Fataliyeva, Ulviyya"]
[Black "Van Foreest, Machteld"]
[Result "1-0"]
[ECO "D45"]
[WhiteElo "2309"]
[BlackElo "2141"]
[Annotator "NA"]
[PlyCount "133"]
[EventDate "2021.11.08"]
[EventType "team-tourn"]
[EventCountry "SLO"]
[SourceTitle "playchess.com"]
[Source "ChessBase"]
[SourceQuality "1"]
[WhiteTeam "Azerbaijan"]
[BlackTeam "Netherlands"]
[WhiteTeamCountry "AZE"]
[BlackTeamCountry "NED"]
[TimeControl "40/5400+30:1800+30"]

1. d4 {[%emt 0:00:02]} Nf6 {[%emt 0:00:41]} 2. Nf3 {[%emt 0:00:05]} d5 {
[%emt 0:02:03]} 3. c4 {[%emt 0:00:05]} c6 {[%emt 0:01:14]} 4. e3 {[%emt 0:00:
04]} e6 {[%emt 0:00:57]} 5. Nc3 {[%emt 0:00:06]} Be7 {[%emt 0:00:57]} 6. Be2 {
[%emt 0:00:13]} O-O {[%emt 0:00:52]} 7. O-O {[%emt 0:00:04]} b6 {[%emt 0:03:52]
} 8. b3 {[%emt 0:00:05]} Bb7 {[%emt 0:00:35]} 9. Bb2 {[%emt 0:00:05]} Nbd7 {
[%emt 0:01:13]} 10. Rc1 {[%emt 0:00:05]} Rc8 {[%emt 0:03:45]} 11. Qd3 {[%emt 0:
00:05]} Qc7 {[%emt 0:05:52]} 12. cxd5 {[%emt 0:04:15]} exd5 {[%emt 0:04:25]}
13. Qf5 {[%emt 0:00:33]} Rfe8 {[%emt 0:09:56]} 14. Rfd1 {[%emt 0:07:38]} Bf8 {
[%emt 0:04:10]} 15. h4 {[%emt 0:01:10]} Qd6 {[%emt 0:04:51]} 16. Ng5 {[%emt 0:
06:29]} h6 {[%emt 0:03:21]} 17. Nh3 {[%emt 0:02:05]} Qe6 {[%emt 0:12:01]} 18.
Qxe6 {[%emt 0:05:51]} Rxe6 {[%emt 0:00:44]} 19. g4 {[%emt 0:02:59]} Ne4 {
[%emt 0:04:57]} 20. Nf4 {[%emt 0:01:58]} Nxc3 {[%emt 0:01:46]} 21. Rxc3 {
[%emt 0:00:25]} Ree8 {[%emt 0:00:40]} 22. g5 {[%emt 0:00:20]} Be7 {[%emt 0:05:
50]} 23. Bg4 {[%emt 0:02:29]} Rcd8 {[%emt 0:04:12]} 24. g6 {[%emt 0:00:28]} Bb4
{[%emt 0:02:40]} 25. gxf7+ {[%emt 0:02:43]} Kxf7 {[%emt 0:00:02]} 26. Bh5+ {
[%emt 0:00:25]} Kf6 {[%emt 0:01:05]} 27. Rcd3 {[%emt 0:15:35]} g6 {[%emt 0:00:
45]} 28. Bxg6 {[%emt 0:00:30]} Rg8 {[%emt 0:00:04]} 29. h5 {[%emt 0:00:07]} Bd6
{[%emt 0:02:54]} 30. Ng2 {[%emt 0:01:16]} Nf8 {[%emt 0:02:32]} 31. e4 {[%emt 0:
03:33]} Nxg6 {[%emt 0:00:02]} 32. Rf3+ {[%emt 0:12:24]} Ke7 {[%emt 0:04:53]}
33. hxg6 {[%emt 0:01:48]} Rxg6 {[%emt 0:00:03]} 34. e5 {[%emt 0:00:54]} Bc7 {
[%emt 0:00:03]} 35. Ba3+ {[%emt 0:01:49]} Kd7 {[%emt 0:00:31]} 36. Rf7+ {
[%emt 0:00:11]} Kc8 {[%emt 0:00:07]} 37. f4 {[%emt 0:00:14]} c5 {[%emt 0:02:07]
} 38. Kf2 {[%emt 0:02:35]} Rdg8 {[%emt 0:02:27]} 39. Ne3 {[%emt 0:01:09]} Bd8 {
[%emt 0:00:25]} 40. Rxb7 {[%emt 0:16:22]} Kxb7 {[%emt 0:04:37]} 41. dxc5 {
[%emt 0:30:31]} b5 {[%emt 0:32:53]} 42. Rxd5 {[%emt 0:05:11]} Ra6 {[%emt 0:02:
03]} 43. Bb4 {[%emt 0:02:19]} Rxa2+ {[%emt 0:00:18]} 44. Kf3 {[%emt 0:00:04]}
a5 {[%emt 0:00:00]} 45. Bc3 {[%emt 0:00:00]} Ra3 {[%emt 0:00:00]} 46. Rd7+ {
[%emt 0:00:00]} Kc8 {[%emt 0:00:00]} 47. e6 {[%emt 0:00:00]} a4 {[%emt 0:00:00]
} 48. Ra7 {[%emt 0:00:00]} Re8 {[%emt 0:00:00]} 49. f5 {[%emt 0:00:00]} Rxb3 {
[%emt 0:00:00]} 50. Bd4 {[%emt 0:00:00]} Kb8 {[%emt 0:00:00]} 51. c6 {[%emt 0:
00:00]} a3 {[%emt 0:01:20]} 52. Ke4 {[%emt 0:00:00]} Rb4 {[%emt 0:00:25]} 53.
Rxa3 {[%emt 0:00:00]} Rg8 {[%emt 0:01:00]} 54. Kd5 {[%emt 0:00:00]} Bc7 {
[%emt 0:01:04]} 55. e7 {[%emt 0:00:00]} Rxd4+ {[%emt 0:00:48]} 56. Kxd4 {
[%emt 0:00:00]} Bd6 {[%emt 0:00:03]} 57. Ra5 {[%emt 0:04:28]} Bxe7 {[%emt 0:00:
32]} 58. Rxb5+ {[%emt 0:00:31]} Kc8 {[%emt 0:00:32]} 59. Nd5 {[%emt 0:00:13]}
Bd6 {[%emt 0:00:27]} 60. Rb7 {[%emt 0:01:18]} Rg4+ {[%emt 0:01:02]} 61. Kd3 {
[%emt 0:00:36]} Bc5 {[%emt 0:00:26]} 62. Rc7+ {[%emt 0:00:31]} Kb8 {[%emt 0:00:
13]} 63. Rd7 {[%emt 0:00:07]} Kc8 {[%emt 0:01:06]} 64. f6 {[%emt 0:00:24]} Rd4+
{[%emt 0:01:53]} 65. Kc3 {[%emt 0:00:11]} Rd1 {[%emt 0:01:14]} 66. Ne7+ {
[%emt 0:00:44]} Bxe7 {[%emt 0:00:07]} 67. fxe7 {[%emt 0:00:11]} 1-0

[Event "23rd ETCC Women 2021"]
[Site "Catez"]
[Date "2021.11.21"]
[Round "9.16"]
[White "Lanchava, Tea"]
[Black "Beydullayeva, Govhar"]
[Result "1/2-1/2"]
[ECO "A13"]
[WhiteElo "2215"]
[BlackElo "2278"]
[Annotator "NA"]
[PlyCount "129"]
[EventDate "2021.11.08"]
[EventType "team-tourn"]
[EventCountry "SLO"]
[SourceTitle "playchess.com"]
[Source "ChessBase"]
[SourceQuality "1"]
[WhiteTeam "Netherlands"]
[BlackTeam "Azerbaijan"]
[WhiteTeamCountry "NED"]
[BlackTeamCountry "AZE"]
[TimeControl "40/5400+30:1800+30"]

1. c4 {[%emt 0:00:06]} e6 {[%emt 0:00:10]} 2. Nf3 {[%emt 0:01:08]} Nf6 {
[%emt 0:00:20]} 3. e3 {[%emt 0:04:58]} b6 {[%emt 0:00:24]} 4. b3 {[%emt 0:00:
50]} Bb7 {[%emt 0:00:03]} 5. Bb2 {[%emt 0:01:58]} d5 {[%emt 0:00:58]} 6. Nc3 {
[%emt 0:04:47]} Nbd7 {[%emt 0:00:29]} 7. Be2 {[%emt 0:03:01]} a6 {[%emt 0:00:
22]} 8. Qc2 {[%emt 0:00:41]} Bd6 {[%emt 0:00:29]} 9. cxd5 {[%emt 0:08:17]} exd5
{[%emt 0:00:13]} 10. Nh4 {[%emt 0:01:29]} g6 {[%emt 0:04:29]} 11. f4 {[%emt 0:
05:50]} Qe7 {[%emt 0:13:31]} 12. O-O {[%emt 0:04:07]} O-O {[%emt 0:14:27]} 13.
Rae1 {[%emt 0:03:18]} b5 {[%emt 0:07:14]} 14. Bf3 {[%emt 0:02:15]} Ne4 {
[%emt 0:07:05]} 15. d3 {[%emt 0:08:38]} Nxc3 {[%emt 0:00:32]} 16. Qxc3 {
[%emt 0:00:17]} f6 {[%emt 0:00:01]} 17. Re2 {[%emt 0:00:38]} c5 {[%emt 0:11:34]
} 18. Ba1 {[%emt 0:01:46]} b4 {[%emt 0:07:22]} 19. Qb2 {[%emt 0:00:38]} Nb6 {
[%emt 0:00:55]} 20. g4 {[%emt 0:02:24]} c4 {[%emt 0:07:52]} 21. dxc4 {[%emt 0:
02:22]} dxc4 {[%emt 0:00:09]} 22. bxc4 {[%emt 0:00:39]} Bxf3 {[%emt 0:02:05]}
23. Nxf3 {[%emt 0:01:34]} Qe4 {[%emt 0:07:00]} 24. g5 {[%emt 0:07:44]} Be7 {
[%emt 0:04:59]} 25. Qd4 {[%emt 0:07:59]} Qxd4 {[%emt 0:02:08]} 26. exd4 {
[%emt 0:00:29]} Rae8 {[%emt 0:01:29]} 27. Rfe1 {[%emt 0:00:45]} Kf7 {[%emt 0:
00:03]} 28. gxf6 {[%emt 0:09:26]} Bxf6 {[%emt 0:00:03]} 29. Ne5+ {[%emt 0:01:
09]} Bxe5 {[%emt 0:01:23]} 30. fxe5 {[%emt 0:00:28]} Nxc4 {[%emt 0:00:07]} 31.
d5 {[%emt 0:01:07]} Ke7 {[%emt 0:02:05]} 32. Bd4 {[%emt 0:01:09]} Rc8 {[%emt 0:
00:14]} 33. Bf2 {[%emt 0:02:40]} g5 {[%emt 0:00:41]} 34. Rd1 {[%emt 0:02:18]}
h5 {[%emt 0:01:39]} 35. Re4 {[%emt 0:01:15]} Nb2 {[%emt 0:02:15]} 36. Rd2 {
[%emt 0:00:39]} Nc4 {[%emt 0:01:19]} 37. Rc2 {[%emt 0:00:46]} Rf4 {[%emt 0:00:
16]} 38. Rxf4 {[%emt 0:00:54]} gxf4 {[%emt 0:00:00]} 39. Bh4+ {[%emt 0:00:42]}
Kf8 {[%emt 0:00:50]} 40. Re2 {[%emt 0:02:59]} Ne3 {[%emt 0:01:04]} 41. Rd2 {
[%emt 0:36:12]} Rc1+ {[%emt 0:06:51]} 42. Kf2 {[%emt 0:00:00]} Ng4+ {[%emt 0:
03:09]} 43. Kf3 {[%emt 0:00:00]} Nxe5+ {[%emt 0:02:13]} 44. Ke4 {[%emt 0:00:00]
} Nd7 {[%emt 0:02:42]} 45. Kxf4 {[%emt 0:00:00]} Rf1+ {[%emt 0:08:37]} 46. Kg5
{[%emt 0:00:00]} Ne5 {[%emt 0:02:27]} 47. d6 {[%emt 0:00:00]} Rf7 {[%emt 0:04:
58]} 48. Kh6 {[%emt 0:00:00]} Kg8 {[%emt 0:02:11]} 49. Rd5 {[%emt 0:00:00]}
Rh7+ {[%emt 0:02:11]} 50. Kg5 {[%emt 0:00:00]} Nd7 {[%emt 0:00:12]} 51. Kf5 {
[%emt 0:00:00]} Kf7 {[%emt 0:00:11]} 52. Bg5 {[%emt 0:00:00]} Rh8 {[%emt 0:00:
33]} 53. Rd4 {[%emt 0:00:00]} Rb8 {[%emt 0:00:12]} 54. Re4 {[%emt 0:00:00]}
Rb5+ {[%emt 0:00:21]} 55. Kf4 {[%emt 0:00:00]} Nf6 {[%emt 0:01:21]} 56. Rd4 {
[%emt 0:00:00]} Nd7 {[%emt 0:01:21]} 57. Re4 {[%emt 0:00:00]} Nf6 {[%emt 0:00:
03]} 58. Rd4 {[%emt 0:00:00]} Nd7 {[%emt 0:00:09]} 59. Be7 {[%emt 0:00:00]} Ke6
{[%emt 0:00:26]} 60. Rd1 {[%emt 0:00:00]} Rf5+ {[%emt 0:00:29]} 61. Kg3 {
[%emt 0:00:00]} a5 {[%emt 0:00:12]} 62. h4 {[%emt 0:01:19]} a4 {[%emt 0:00:25]}
63. Rd4 {[%emt 0:02:28]} Rb5 {[%emt 0:00:40]} 64. Re4+ {[%emt 0:00:26]} Kd5 {
[%emt 0:00:13]} 65. Kf3 {[%emt 0:03:39]} 1/2-1/2